fUST/lending_fUST_20250310
["ID","MTS","AMOUNT","RATE_DAILY","PERIOD"]
[355797055,1741567855607,-150.0,0.0017204,120]
[355797056,1741567855616,-398.0,0.0017204,2]
[355797057,1741567855626,-268.102328,0.00173035,120]
[355797058,1741567855636,-4500.0,0.00174447,120]
[355797059,1741567855646,-150.0,0.0017504,120]
[355797060,1741567855656,-540.0,0.0017504,120]
[355797061,1741567855666,-1944.0,0.0017504,120]
[355797062,1741567855676,-2273.0,0.0017504,120]
[355797063,1741567855686,-398.0,0.0017504,2]
[355797064,1741567855696,-4500.0,0.00175058,14]
[355797065,1741567855706,-150.0,0.0017804,120]
[355797066,1741567855715,-540.0,0.0017804,120]
[355797067,1741567855725,-1944.0,0.0017804,120]
[355797068,1741567855735,-2273.0,0.0017804,120]
[355797069,1741567855744,-398.0,0.0017804,2]
[355797070,1741567855754,-4500.0,0.00179358,120]
[355797071,1741567855763,-268.102328,0.00180245,120]
[355797072,1741567855773,-150.0,0.0018104,120]
[355797073,1741567855782,-540.0,0.0018104,120]
[355797074,1741567855792,-1944.0,0.0018104,120]
[355797075,1741567855802,-2273.0,0.0018104,120]
[355797076,1741567855812,-398.0,0.0018104,2]
[355797077,1741567855824,-154.187621,0.00182682,120]
[355797078,1741567855837,-160.059105,0.00182682,120]
[355797079,1741567855847,-160.059105,0.00182682,120]
[355797080,1741567855857,-151.0,0.00182682,120]
[355797081,1741567855867,-151.0,0.00183232,120]
[355797082,1741567855877,-151.0,0.001833,53]
[355797083,1741567855887,-150.0,0.0018404,120]
[355797084,1741567855899,-540.0,0.0018404,120]
[355797085,1741567855909,-1944.0,0.0018404,120]
[355797086,1741567855919,-2273.0,0.0018404,120]
[355797087,1741567855928,-398.0,0.0018404,2]
[355797088,1741567855938,-10000.0,0.001845,120]
[355797089,1741567855947,-150.0,0.0018704,120]
[355797090,1741567855956,-540.0,0.0018704,120]
[355797091,1741567855966,-1944.0,0.0018704,120]
[355797092,1741567855976,-2273.0,0.0018704,120]
[355797093,1741567855986,-398.0,0.0018704,2]
[355797094,1741567855996,-268.102328,0.00187455,120]
[355797095,1741567856006,-151.38,0.00188,60]
[355797096,1741567856016,-2999.0,0.0019,120]
[355797097,1741567856025,-150.0,0.0019004,120]
[355797098,1741567856035,-1944.0,0.0019004,120]
[355797099,1741567856045,-540.0,0.0019004,120]
[355797100,1741567856054,-2273.0,0.0019004,120]
[355797101,1741567856063,-4510.0,0.00190745,14]
[355797103,1741567856073,-49767.1731754,0.00192739,60]
[355797104,1741567856085,-150.0,0.0019304,120]
[355797105,1741567856095,-551.896,0.0019304,120]
[355797106,1741567856105,-267.384,0.0019304,120]
[355797107,1741567856114,-268.102328,0.00194665,120]
[355797108,1741567856124,-151.0,0.00195836,120]
[355797109,1741567856133,-150.0,0.0019604,120]
[355797110,1741567856144,-500.0,0.00198407,120]
[355797111,1741567856153,-5000.0,0.00199,120]
[355797112,1741567856163,-157.58,0.00199,60]
[355797113,1741567856263,-5000.0,0.00199018,14]
[355797114,1741567856288,-25128.276392,0.002,120]
[355797115,1741567856298,-573.755254,0.002,120]
[355797116,1741567856308,-573.755254,0.002,120]
[355797117,1741567856318,-268.102328,0.00201875,120]
[355797118,1741567856328,-4148.58699075,0.00203318,120]
[355797119,1741567856341,-10000.0,0.002045,120]
[355797120,1741567856351,-151.0,0.002045,10]
[355797121,1741567856361,-268.102328,0.00209084,120]
[355797122,1741567856371,-14418.511835,0.0021458,120]
[355797123,1741567856380,-268.102328,0.00216294,120]
[355797124,1741567856390,-159.0,0.00223,120]
[355797125,1741567856400,-3000.0,0.00223,120]
[355797126,1741567856410,-268.102328,0.00223504,120]
[355797127,1741567856420,-151.0,0.002238,120]
[355797128,1741567856430,-151.0,0.002238,120]
[355797129,1741567856439,-151.0,0.0022399,120]
[355797130,1741567856449,-151.0,0.0022399,120]
[355797131,1741567856459,-1621.458186,0.00224,120]
[355797132,1741567856469,-1621.458186,0.00224,120]
[355797133,1741567856479,-151.0,0.00224,120]
[355797134,1741567856488,-151.0,0.00224,120]
[355797135,1741567856498,-151.0,0.00224,120]
[355797136,1741567856508,-767.54256,0.00224,120]
[355797137,1741567856518,-767.54256,0.00224,120]
[355797138,1741567856528,-210.716242,0.00224,30]
[355797139,1741567856538,-210.716242,0.00224,30]
[355797140,1741567856548,-701.132744,0.00224,120]
[355797141,1741567856558,-701.132744,0.00224,120]
[355797142,1741567856568,-828.562556,0.00224,120]
[355797143,1741567856578,-828.562556,0.00224,120]
[355797144,1741567856592,-21159.85284166,0.00224,120]
[355797145,1741567856784,-123.28542892,0.00048,60]
[355797151,1741568051378,10000.0,0.0003,10]
[355797152,1741568083219,6884.0,0.0003,10]
[355797167,1741568634761,2622.0,0.0003,3]
[355797172,1741568944192,150.0,0.00022082,7]
[355797173,1741568944543,215.0,0.00022082,7]
[355797174,1741568944928,430.0,0.00022082,7]
[355797175,1741568945311,859.0,0.00022082,7]
[355797176,1741568945677,1718.0,0.00022082,7]
[355797177,1741568946225,2170.0,0.00022082,7]
[355797178,1741568946486,3344.0,0.00022082,7]
[355797179,1741568946909,3436.0,0.00022082,7]
[355797180,1741568947362,5308.0,0.00022082,7]
[355797181,1741568957091,-500.0,0.00036922,2]
[355797182,1741568957111,-6121.29176098,0.00038734,4]
[355797183,1741568957133,-964.41760768,0.00038734,2]
[355797184,1741568957159,-328.36001049,0.00038834,2]
[355797185,1741568957180,-1894.8019964,0.00038835,2]
[355797200,1741569032861,-183.89452902,0.000388,113]
[355797201,1741569032874,-8105.1980036,0.00038835,2]
[355797202,1741569032884,-2212.98993301,0.000389,8]
[355797203,1741569032894,-250.0,0.00039937,2]
[355797204,1741569032904,-12047.09897554,0.00039981,2]
[355797246,1741569038678,-12852.90102446,0.00039981,2]
[355797248,1741569038688,-2190.46227554,0.000449,28]
[355797289,1741569041066,-151.0,0.00045,120]
[355797290,1741569041077,-3000.0,0.00047,120]
[355797291,1741569041087,-3000.0,0.00048,120]
[355797292,1741569041097,-259.89,0.00049,2]
[355797293,1741569041106,-976.10935798,0.00050814,2]
[355797294,1741569041116,-21249.3621942,0.00050825,4]
[355797295,1741569041126,-3110.06,0.00050825,10]
[355797296,1741569041139,-2591.72,0.00050825,10]
[355797297,1741569041159,-2159.77,0.00050825,10]
[355797298,1741569041173,-45222.78538911,0.00050834,4]
[355797322,1741569043775,-54412.01024,0.00050834,4]
[355797326,1741569043900,-6612.01534189,0.00050834,4]
[355797329,1741569043910,-116086.47892165,0.00050844,2]
[355797416,1741569996124,-180.16294363,0.0003589,2]
[355797418,1741570075778,1775.19174779,0.00016,2]
[355797434,1741570118328,19511.83345323,0.000145,2]
[355797436,1741570125124,29577.0,0.0001,7]
[355797437,1741570125151,50000.0,0.0001,7]
[355797438,1741570125176,50000.0,0.0001,7]
[355797439,1741570125201,50000.0,0.0001,7]
[355797440,1741570125226,50000.0,0.0001,7]
[355797441,1741570125253,2444.14489859,0.0001,7]
[355797442,1741570125321,9000.0,0.0003,60]
[355797489,1741570232216,-1794.80153359,0.0003379,2]
[355797490,1741570232226,-3968.7799142,0.00035437,2]
[355797491,1741570232236,-286.25151937,0.0003589,2]
[355797492,1741570232246,-2139.2236019,0.000359,7]
[355797493,1741570232256,-238.0560991,0.000362,98]
[355797494,1741570232265,-1794.80153359,0.0003879,2]
[355797495,1741570232275,-500.0,0.00039973,5]
[355797496,1741570232289,-152.53,0.0003999,7]
[355797497,1741570232299,-754.31,0.0003999,3]
[355797498,1741570232308,-9265.56246854,0.0004,30]
[355797522,1741570238010,-184.28259719,0.00038789,2]
[355797524,1741570238021,-474.25066418,0.00038789,2]
[355797526,1741570238031,-1088070.14464748,0.0004,30]
[355797528,1741570238041,-2797.51,0.0004,30]
[355797530,1741570238051,-3190.68463474,0.00040447,28]
[355797532,1741570238061,-24900.0,0.00040546,2]
[355797534,1741570238071,-172.0,0.00041,14]
[355797535,1741570238082,-466.414463,0.00041211,2]
[355797537,1741570238092,-446.46,0.000413,30]
[355797539,1741570238102,-1375.8718548,0.00041323,2]
[355797541,1741570238112,-216.4905733,0.00041507,2]
[355797543,1741570238124,-1317.3014477,0.00041778,2]
[355797545,1741570238134,-1794.80153359,0.0004379,2]
[355797547,1741570238144,-500.0,0.00043835,120]
[355797549,1741570238153,-151.0,0.00045,120]
[355797550,1741570238163,-1000.0,0.00045452,10]
[355797553,1741570238177,-466.414463,0.00046532,2]
[355797555,1741570238187,-464.53220183,0.00048373,10]
[355797556,1741570238196,-419.08339367,0.00048373,7]
[355797558,1741570238207,-514.7139921,0.00048373,10]
[355797560,1741570238216,-502.54450241,0.00048373,10]
[355797562,1741570238226,-500.0,0.00048373,2]
[355797564,1741570238235,-500.0,0.00048373,10]
[355797566,1741570238245,-500.0,0.00048373,10]
[355797568,1741570238255,-40702.08944048,0.00048398,120]
[355797570,1741570238265,-502.32488959,0.00048973,10]
[355797571,1741570238275,-500.0,0.00048973,10]
[355797573,1741570238285,-996.16,0.00049,2]
[355797575,1741570238295,-257527.22103742,0.00049,90]
[355797604,1741570240257,-3136.66,0.0004899,10]
[355797605,1741570240267,-2877.7547686,0.00049,90]
[355797606,1741570240280,-371.31075422,0.00049,90]
[355797628,1741570243102,-20.01810485,0.00049,90]
[355797629,1741570243114,-20306.25,0.00049,90]
[355797640,1741570246015,-3545.46416108,0.00049,90]
[355797642,1741570246177,-4250.0,0.00049,90]
[355797648,1741570760963,-500.0,0.0002801,2]
[355797649,1741570760992,-536.44916809,0.0002801,2]
[355797650,1741570761018,-400.0,0.00032999,2]
[355797651,1741570761188,-500.0,0.00033,10]
[355797652,1741570761222,-500.0,0.00033,10]
[355797653,1741570761244,-535.55114198,0.00033,10]
[355797654,1741570761265,-502.53404922,0.00033,10]
[355797655,1741570761287,-599.74566714,0.00033,10]
[355797656,1741570761308,-599.74566714,0.00033,10]
[355797657,1741570761331,-500.0,0.00033833,2]
[355797658,1741570761354,-2075.26325572,0.000339,6]
[355797659,1741570761375,-560.0,0.00035456,2]
[355797660,1741570761396,-500.0,0.0003589,2]
[355797661,1741570761418,-350.27136615,0.000362,98]
[355797662,1741570761438,-258.75,0.00038367,3]
[355797663,1741570761459,-776.29,0.00038367,3]
[355797664,1741570761482,-2340.53221276,0.00038377,2]
[355797665,1741570761504,-500.0,0.00038377,2]
[355797666,1741570761527,-2340.53221276,0.00038377,2]
[355797667,1741570761549,-500.0,0.00038377,2]
[355797668,1741570761572,-2340.53221276,0.00038377,2]
[355797669,1741570761594,-500.0,0.00038377,2]
[355797670,1741570761618,-2340.53221276,0.00038377,2]
[355797671,1741570761640,-500.0,0.00038377,2]
[355797672,1741570761662,-2340.53221276,0.00038377,2]
[355797673,1741570761685,-2340.53221276,0.00038377,2]
[355797674,1741570761707,-2340.53221276,0.00038377,2]
[355797675,1741570761730,-500.0,0.00038377,2]
[355797676,1741570761755,-2340.53221276,0.00038377,2]
[355797677,1741570761777,-500.0,0.00038377,2]
[355797678,1741570761799,-2340.53221276,0.00038377,2]
[355797679,1741570761823,-500.0,0.00038377,2]
[355797680,1741570761848,-2340.53221276,0.00038377,2]
[355797681,1741570761872,-500.0,0.00038377,2]
[355797682,1741570761896,-2340.53221276,0.00038377,2]
[355797683,1741570761920,-500.0,0.00038377,2]
[355797684,1741570761944,-2340.53221276,0.00038377,2]
[355797685,1741570761969,-500.0,0.00038377,2]
[355797686,1741570761994,-2340.53221276,0.00038377,2]
[355797687,1741570762018,-2340.53221276,0.00038377,2]
[355797688,1741570762041,-500.0,0.00038377,2]
[355797689,1741570762065,-2037.94870592,0.00038377,2]
[355797690,1741570813598,-397.76040135,0.00038277,2]
[355797691,1741570813621,-2800.76939686,0.00038277,2]
[355797692,1741570813642,-8118.74422544,0.000383,2]
[355797693,1741570813664,-500.0,0.00038373,5]
[355797694,1741570813686,-500.0,0.00038373,5]
[355797695,1741570813708,-163.04061119,0.00038373,2]
[355797696,1741570813735,-302.58350684,0.00038377,2]
[355797697,1741570813761,-500.0,0.00038377,2]
[355797698,1741570813786,-2340.53221276,0.00038377,2]
[355797699,1741570813814,-2340.53221276,0.00038377,2]
[355797700,1741570813840,-500.0,0.00038377,2]
[355797701,1741570813869,-2340.53221276,0.00038377,2]
[355797702,1741570813897,-500.0,0.00038377,2]
[355797703,1741570813924,-2340.53221276,0.00038377,2]
[355797704,1741570813950,-500.0,0.00038377,2]
[355797705,1741570813977,-2340.53221276,0.00038377,2]
[355797706,1741570814003,-2340.53221276,0.00038377,2]
[355797707,1741570814031,-500.0,0.00038377,2]
[355797708,1741570814089,-2340.53221276,0.00038377,2]
[355797709,1741570814124,-500.0,0.00038377,2]
[355797710,1741570814152,-2340.53221276,0.00038377,2]
[355797711,1741570814188,-500.0,0.00038377,2]
[355797712,1741570814243,-2340.53221276,0.00038377,2]
[355797713,1741570814269,-500.0,0.00038377,2]
[355797714,1741570814317,-2340.53221276,0.00038377,2]
[355797715,1741570814343,-2340.53221276,0.00038377,2]
[355797716,1741570814369,-500.0,0.00038377,2]
[355797717,1741570814396,-1971.24751796,0.00038377,2]
[355797718,1741570883974,-544.84,0.00038366,3]
[355797719,1741570883996,-500.0,0.00038373,5]
[355797720,1741570884024,-500.0,0.00038373,5]
[355797721,1741570884046,-500.0,0.00038373,2]
[355797722,1741570884067,-500.0,0.00038373,5]
[355797723,1741570884089,-500.0,0.00038373,5]
[355797724,1741570884112,-232.0,0.00038376,2]
[355797725,1741570884137,-1476.80153087,0.00038376,2]
[355797726,1741570884161,-500.0,0.00038376,2]
[355797727,1741570884186,-1476.80153087,0.00038376,2]
[355797728,1741570884211,-500.0,0.00038376,2]
[355797729,1741570884235,-1476.80153087,0.00038376,2]
[355797730,1741570884261,-1292.75540739,0.00038376,2]
[355797731,1741570936203,-699.11,0.00038366,3]
[355797732,1741570936227,-502.72457703,0.00038373,5]
[355797733,1741570936253,-500.0,0.00038373,5]
[355797734,1741570936276,-500.0,0.00038373,5]
[355797735,1741570936297,-500.0,0.00038373,5]
[355797736,1741570936322,-184.04612348,0.00038376,2]
[355797737,1741570936345,-500.0,0.00038376,2]
[355797738,1741570936367,-1476.80153087,0.00038376,2]
[355797739,1741570936390,-500.0,0.00038376,2]
[355797740,1741570936413,-1476.80153087,0.00038376,2]
[355797741,1741570936438,-500.0,0.00038376,2]
[355797742,1741570936462,-1476.80153087,0.00038376,2]
[355797743,1741570936485,-1183.71470688,0.00038376,2]
[355797746,1741571359073,-663.66002812,0.0002801,2]
[355797747,1741571359097,-500.0,0.00033,10]
[355797748,1741571359124,-313.3548702,0.00035286,2]
[355797749,1741571359150,-2006.08781365,0.000379,8]
[355797750,1741571359175,-318.20832108,0.00038265,2]
[355797751,1741571359204,-1597.06810803,0.00038352,2]
[355797752,1741571359230,-500.0,0.00038352,2]
[355797753,1741571359254,-142.60687597,0.00038352,15]
[355797830,1741571438102,-1581.09742695,0.00035392,2]
[355797831,1741571438112,-1581.09742695,0.00035392,2]
[355797832,1741571438122,-500.0,0.00035392,7]
[355797833,1741571438131,-1581.09742695,0.00035392,2]
[355797834,1741571438141,-500.0,0.00035392,7]
[355797835,1741571438150,-1581.09742695,0.00035392,2]
[355797836,1741571438159,-500.0,0.00035392,7]
[355797837,1741571438169,-1581.09742695,0.00035392,2]
[355797838,1741571438180,-500.0,0.00035392,7]
[355797839,1741571438190,-1581.09742695,0.00035392,2]
[355797840,1741571438199,-1581.09742695,0.00035392,2]
[355797841,1741571438209,-500.0,0.00035392,7]
[355797842,1741571438218,-1581.09742695,0.00035392,2]
[355797843,1741571438228,-364.0368085,0.00035392,7]
[355797844,1741571438237,-1581.09742695,0.00035392,2]
[355797845,1741571438246,-500.0,0.00035392,7]
[355797846,1741571438255,-1581.09742695,0.00035392,2]
[355797847,1741571438265,-500.0,0.00035392,7]
[355797848,1741571438274,-1581.09742695,0.00035392,2]
[355797849,1741571438283,-1581.09742695,0.00035392,2]
[355797850,1741571438292,-500.0,0.00035392,7]
[355797851,1741571438302,-1581.09742695,0.00035392,2]
[355797852,1741571438311,-1581.09742695,0.00035392,2]
[355797853,1741571438320,-1581.09742695,0.00035392,2]
[355797854,1741571438329,-1581.09742695,0.00035392,2]
[355797855,1741571438339,-500.0,0.00035392,7]
[355797856,1741571438348,-1581.09742695,0.00035392,2]
[355797857,1741571438358,-1581.09742695,0.00035392,2]
[355797858,1741571438368,-1581.09742695,0.00035392,2]
[355797859,1741571438378,-1581.09742695,0.00035392,2]
[355797860,1741571438388,-1581.09742695,0.00035392,2]
[355797861,1741571438398,-1581.09742695,0.00035392,2]
[355797862,1741571438408,-1581.09742695,0.00035392,2]
[355797863,1741571438418,-1581.09742695,0.00035392,2]
[355797864,1741571438430,-1581.09742695,0.00035392,2]
[355797865,1741571438439,-1581.09742695,0.00035392,2]
[355797866,1741571438449,-1581.09742695,0.00035392,2]
[355797867,1741571438460,-1581.09742695,0.00035392,2]
[355797868,1741571438470,-1581.09742695,0.00035392,2]
[355797869,1741571438479,-1581.09742695,0.00035392,2]
[355797870,1741571438489,-1581.09742695,0.00035392,2]
[355797871,1741571438498,-1581.09742695,0.00035392,2]
[355797872,1741571438508,-1581.09742695,0.00035392,2]
[355797873,1741571438517,-1581.09742695,0.00035392,2]
[355797874,1741571438527,-1581.09742695,0.00035392,2]
[355797875,1741571438537,-1581.09742695,0.00035392,2]
[355797876,1741571438547,-1581.09742695,0.00035392,2]
[355797877,1741571438556,-1581.09742695,0.00035392,2]
[355797878,1741571438566,-1581.09742695,0.00035392,2]
[355797879,1741571438575,-1581.09742695,0.00035392,2]
[355797880,1741571438586,-1581.09742695,0.00035392,2]
[355797881,1741571438596,-1581.09742695,0.00035392,2]
[355797882,1741571438606,-1581.09742695,0.00035392,2]
[355797883,1741571438615,-1581.09742695,0.00035392,2]
[355797884,1741571438625,-1581.09742695,0.00035392,2]
[355797885,1741571438635,-1581.09742695,0.00035392,2]
[355797886,1741571438777,-1581.09742695,0.00035392,2]
[355797887,1741571438788,-1581.09742695,0.00035392,2]
[355797888,1741571438798,-1581.09742695,0.00035392,2]
[355797889,1741571438809,-1581.09742695,0.00035392,2]
[355797890,1741571438818,-1581.09742695,0.00035392,2]
[355797891,1741571438828,-1581.09742695,0.00035392,2]
[355797892,1741571438837,-1581.09742695,0.00035392,2]
[355797893,1741571438847,-1581.09742695,0.00035392,2]
[355797894,1741571438857,-1581.09742695,0.00035392,2]
[355797895,1741571438867,-1581.09742695,0.00035392,2]
[355797896,1741571438877,-1581.09742695,0.00035392,2]
[355797897,1741571438886,-1581.09742695,0.00035392,2]
[355797898,1741571438896,-1581.09742695,0.00035392,2]
[355797899,1741571438906,-1581.09742695,0.00035392,2]
[355797900,1741571438916,-1581.09742695,0.00035392,2]
[355797901,1741571438927,-1581.09742695,0.00035392,2]
[355797902,1741571438936,-24900.0,0.00035393,2]
[355797903,1741571438948,-500.0,0.00035616,2]
[355797904,1741571438960,-500.0,0.00035616,2]
[355797905,1741571438970,-500.0,0.00035616,2]
[355797906,1741571438980,-500.0,0.00035616,2]
[355797907,1741571438991,-500.0,0.00035616,2]
[355797908,1741571439000,-500.0,0.00035616,2]
[355797909,1741571439010,-500.0,0.00035616,2]
[355797910,1741571439020,-500.0,0.00035616,2]
[355797911,1741571439029,-500.0,0.00035616,2]
[355797912,1741571439039,-500.0,0.00035616,2]
[355797913,1741571439049,-500.0,0.00035616,2]
[355797914,1741571439059,-500.0,0.00035616,2]
[355797915,1741571439069,-500.0,0.00035616,2]
[355797916,1741571439080,-500.0,0.00035616,2]
[355797917,1741571439090,-500.0,0.00035616,2]
[355797918,1741571439100,-500.0,0.00035616,2]
[355797919,1741571439110,-500.0,0.00035616,2]
[355797920,1741571439120,-500.0,0.00035616,2]
[355797921,1741571439130,-500.0,0.00035616,2]
[355797922,1741571439141,-500.0,0.00035616,2]
[355797923,1741571439151,-500.0,0.00035616,2]
[355797924,1741571439161,-484.78840536,0.00035616,2]
[355797925,1741571439173,-500.0,0.00035616,2]
[355797926,1741571439184,-500.0,0.00035616,2]
[355797927,1741571439194,-500.0,0.00035616,2]
[355797928,1741571439203,-500.0,0.00035616,2]
[355797929,1741571439213,-500.0,0.00035616,2]
[355797930,1741571439223,-500.0,0.00035616,2]
[355797931,1741571439234,-500.0,0.00035616,2]
[355797932,1741571439244,-500.0,0.00035616,2]
[355797933,1741571439254,-500.0,0.00035616,2]
[355797934,1741571439264,-500.0,0.00035616,2]
[355797935,1741571439274,-500.0,0.00035616,2]
[355797936,1741571439284,-500.0,0.00035616,2]
[355797937,1741571439294,-500.0,0.00035616,2]
[355797938,1741571439303,-500.0,0.00035616,2]
[355797939,1741571439314,-500.0,0.00035616,2]
[355797940,1741571439323,-500.0,0.00035616,2]
[355797941,1741571439333,-500.0,0.00035616,2]
[355797942,1741571439346,-500.0,0.00035616,2]
[355797943,1741571439356,-1939.21821991,0.000379,8]
[355797944,1741571439366,-57542.0572776,0.00038353,3]
[355797945,1741571439376,-28771.0286388,0.00038363,3]
[355797946,1741571439387,-15555.67399697,0.00038365,3]
[355797947,1741571439397,-502.6630295,0.00038373,5]
[355797948,1741571439407,-503.13942629,0.00038373,5]
[355797949,1741571439417,-500.0,0.00038373,5]
[355797950,1741571439428,-500.0,0.00038373,5]
[355797951,1741571439439,-500.0,0.00038373,2]
[355797952,1741571439449,-500.0,0.00038373,5]
[355797953,1741571439459,-500.0,0.00038373,5]
[355797954,1741571439469,-500.0,0.00038473,5]
[355797955,1741571439479,-556.89060632,0.00038473,5]
[355797956,1741571439489,-500.0,0.00038473,5]
[355797957,1741571439499,-500.0,0.00038473,5]
[355797958,1741571439508,-1309.5,0.000385,30]
[355797959,1741571439518,-2005.31303265,0.0004,15]
[355797960,1741571439527,-6043.68374612,0.0004,15]
[355797961,1741571439537,-318.20832106,0.00040924,2]
[355797962,1741571439547,-164.0,0.00041,14]
[355797963,1741571439556,-165.71239991,0.00041096,2]
[355797964,1741571439566,-500.0,0.00041211,2]
[355797965,1741571439576,-192.08981394,0.0004186,62]
[355797966,1741571439586,-318.20832106,0.00043583,2]
[355797967,1741571439596,-1402.17018861,0.000438,2]
[355797968,1741571439606,-530.6309983,0.00043835,120]
[355797969,1741571439616,-1000.0,0.00043852,7]
[355797970,1741571439627,-1000.0,0.00043852,10]
[355797971,1741571439636,-1000.0,0.00043852,10]
[355797972,1741571439646,-861.80012203,0.00043852,10]
[355797973,1741571439656,-1000.0,0.00043852,2]
[355797974,1741571439666,-1000.0,0.00043852,10]
[355797975,1741571439675,-1000.0,0.00043852,10]
[355797976,1741571439686,-155.65,0.000439,30]
[355797977,1741571439695,-508.36936515,0.000439,10]
[355797978,1741571439705,-562.95823637,0.000439,5]
[355797979,1741571439715,-611.61085525,0.000439,10]
[355797980,1741571439724,-500.0,0.000439,10]
[355797981,1741571439734,-500.58071568,0.000439,10]
[355797982,1741571439744,-500.0,0.000439,10]
[355797983,1741571439753,-502.69296197,0.000439,10]
[355797984,1741571439763,-500.0,0.000439,10]
[355797985,1741571439772,-500.0,0.000439,10]
[355797986,1741571439782,-500.0,0.000439,10]
[355797987,1741571439791,-500.0,0.000439,10]
[355797988,1741571439800,-507.72504113,0.000439,10]
[355797989,1741571439810,-500.0,0.000439,10]
[355797990,1741571439819,-500.0,0.000439,10]
[355797991,1741571439829,-500.0,0.000439,10]
[355797992,1741571439839,-386.87231632,0.000439,10]
[355797993,1741571439848,-500.0,0.000439,10]
[355797994,1741571439858,-500.0,0.000439,10]
[355797995,1741571439867,-617.1308441,0.000439,10]
[355797996,1741571439882,-500.0,0.000439,10]
[355797997,1741571439892,-500.0,0.000439,10]
[355797998,1741571439902,-333.38754983,0.000439,10]
[355797999,1741571439911,-500.0,0.000439,10]
[355798000,1741571439921,-500.0,0.000439,10]
[355798001,1741571439932,-508.02991586,0.000439,10]
[355798002,1741571439943,-510.83299108,0.0004395,10]
[355798003,1741571439955,-503.2420298,0.0004395,10]
[355798004,1741571439964,-1000.0,0.00043952,10]
[355798005,1741571439974,-509.52900973,0.00043952,10]
[355798006,1741571439985,-501.86694471,0.00043952,10]
[355798007,1741571439996,-151.0,0.00045,120]
[355798008,1741571440006,-151.0,0.00045,120]
[355798010,1741571440016,-318.20832106,0.00046241,2]
[355798011,1741571440027,-500.0,0.00046532,2]
[355798012,1741571440037,-500.0,0.00048,120]
[355798013,1741571440048,-198.307323,0.000488,2]
[355798014,1741571440058,-509.16,0.000488,120]
[355798015,1741571440068,-500.0,0.00048873,10]
[355798016,1741571440077,-508.00880119,0.00048873,10]
[355798017,1741571440087,-229684.09722,0.00048889,2]
[355798019,1741571440098,-57542.0572776,0.0004889,4]
[355798021,1741571440108,-55555.0,0.0004889,120]
[355798022,1741571440118,-318.20832106,0.000489,2]
[355798023,1741571440128,-4000.0,0.000489,120]
[355798024,1741571440138,-938.75233237,0.000489,120]
[355798025,1741571440148,-179.47058929,0.000489,40]
[355798026,1741571440158,-500.0,0.0004899,15]
[355798027,1741571440168,-115084.114555,0.0004899,4]
[355798028,1741571440182,-661340.45732063,0.00049,90]
[355798030,1741571440192,-940.07,0.00049,2]
[355798031,1741571440202,-257.62408557,0.00049,90]
[355798032,1741571440212,-5004.0,0.00049,30]
[355798033,1741571440223,-799.3854481,0.00049014,30]
[355798034,1741571440233,-629.5205846,0.00049014,30]
[355798035,1741571440243,-156.67,0.000493,45]
[355798036,1741571440252,-156.67,0.000493,45]
[355798037,1741571440262,-160.65563768,0.00049315,10]
[355798038,1741571440272,-1000.0,0.00049379,10]
[355798039,1741571440282,-1000.0,0.00049379,10]
[355798040,1741571440292,-502.77258605,0.00049379,10]
[355798041,1741571440302,-1000.0,0.00049379,10]
[355798042,1741571440312,-513.48552673,0.00049379,10]
[355798043,1741571440322,-1000.0,0.00049379,10]
[355798044,1741571440333,-904.65600756,0.00049379,10]
[355798045,1741571440342,-1000.0,0.00049379,10]
[355798046,1741571440352,-691.00852927,0.00049379,10]